Cogmind - Beta 16 @@@ ROGUE MODE // 2025.12.14 @ 22:41:35 Player: winnking222 Result: Destroyed by 8R-AWN with 8R-AWN's Boregun Performance ------------- Evolutions (0) 0 Regions Visited (3) 600 Robots Destroyed (27) 135 Value Destroyed (437) 437 Prototype IDs (23) 460 Alien Tech Used (0) 0 Bonus (300) 300 TOTAL SCORE: 1932 Bonus ------- Aligned with FarCom 300 Cogmind --------- Core Integrity 0/250 Matter 217/450 Energy 250/250 System Corruption 0% Temperature Cool (0) Movement Walking (90) Location -10/Exiles Parts ------- > --- POWER (1) -------- Ion Engine > --- PROPULSION (2) --- Potential Leg Potential Leg > --- UTILITY (2) ------ Large Storage Unit Large Matter Pod > --- WEAPON (2) ------- Heavy Assault Rifle Shotgun > --- INVENTORY (15) --- Light Treads Light Treads Light Treads Wheel Assault Rifle Heavy Assault Rifle Heavy Assault Rifle Shotgun Shotgun Rocket Launcher Peak State ------------ > --- POWER ------------ Ion Engine > --- PROPULSION ------- Potential Leg Potential Leg > --- UTILITY ---------- Large Storage Unit Large Matter Pod > --- WEAPON ----------- Heavy Assault Rifle Heavy Assault Rifle > --- INVENTORY -------- Nuclear Core Nuclear Core Fission Core Light Treads Assault Rifle Heavy Assault Rifle Shotgun Shotgun Rocket Launcher [Rating: 29] Favorites ----------- Power Ion Engine Engine Ion Engine Propulsion Light Treads Treads Light Treads Leg Potential Leg Utility Seismic Detector Device Seismic Detector Storage High-capacity Storage Unit Weapon Heavy Assault Rifle Energy Gun EM Pulse Gun Ballistic Gun Heavy Assault Rifle Launcher Rocket Launcher Build | -11 -10 -10 -10 ------- Run | Yrd Mat Min Exi Slots Evolved . | . . . . Power . | . . . . Propulsion . | . . . . Utility . | . . . . Weapon . | . . . . Parts Attached 21 | 7 6 2 6 Power 2 | 1 1 . . Engine 2 | 1 1 . . Core . | . . . . Reactor . | . . . . Propulsion 5 | 2 . 1 2 Treads 3 | 2 . 1 . Leg 2 | . . . 2 Wheel . | . . . . Hover . | . . . . Flight . | . . . . Utility 6 | 2 1 1 2 Device 2 | 1 . 1 . Storage 4 | 1 1 . 2 Processor . | . . . . Hackware . | . . . . Protection . | . . . . Artifact . | . . . . Weapon 8 | 2 4 . 2 Energy Gun 2 | 2 . . . Energy Cannon . | . . . . Ballistic Gun 5 | . 4 . 1 Ballistic Cannon . | . . . . Launcher 1 | . . . 1 Special Weapon . | . . . . Impact Weapon . | . . . . Slashing Weapon . | . . . . Piercing Weapon . | . . . . Special Melee Weapon . | . . . . Unidentified Prototypes . | . . . . Parts Lost 2 | . 1 . 1 Power . | . . . . Propulsion . | . . . . Utility . | . . . . Weapon 2 | . 1 . 1 Highest Loss Streak 1 | . 1 . 1 To Critical Strikes 1 | . . . 1 Average Backups 12 | 5 15 18 8 Power . | . . . . Propulsion 4 | 3 4 6 3 Utility 1 | . 1 2 . Weapon 6 | 1 7 10 3 Tool/Special . | . . . . Unused Backups 29 | . 5 5 19 Power 3 | . . . 3 Propulsion 9 | . 3 . 6 Utility 5 | . . . 5 Weapon 12 | . 2 5 5 Tool/Special . | . . . . Average Slot Usage (%) 99 | . 99 100 99 Engine 14 | . 14 14 14 Treads 25 | . 28 28 23 Leg 2 | . . . 4 Device 13 | . 14 14 12 Storage 14 | . 14 14 15 Ballistic Gun 27 | . 26 28 27 Peak Build Rating 29 | 7 12 12 29 Average Rating 11 | 4 9 12 13 On Entrance 7 | . 7 12 12 Avg Prop Armor Cover (%) . | . . . . Naked Turns . | . . . . Heaviest Build 52 | 13 52 52 52 Greatest Support 60 | 40 40 40 60 Greatest Overweight (x) 3 | 3 1 1 1 Average Overweight (x) . | . . 1 . Largest Inventory Capacity 20 | 8 20 20 20 Average Capacity 16 | 7 19 20 11 Most Carried 20 | 8 20 20 20 Average Carried 13 | 5 15 19 9 Final Capacity 20 | 8 20 20 15 Final Carried 20 | 7 20 20 10 Class Distribution -------------------- 100% | Mutant Dominant Class ---------------- Mutant | -10/Materials Mutant | -10/Mines Mutant | -10/Exiles Resources | -11 -10 -10 -10 ----------- Run | Yrd Mat Min Exi Matter Collected 524 | 270 176 38 40 Remotely . | . . . . Salvage Created 746 | 164 530 45 7 Parts 64 | 14 43 7 . Haulers Intercepted 1 | . 1 . . Recyclers Shooed 1 | . 1 . . Parts Field Recycled . | . . . . Retrieved Matter . | . . . . Parts Self-Destructed . | . . . . Prevented . | . . . . Parts Restored . | . . . . Kills | -11 -10 -10 -10 ------- Run | Yrd Mat Min Exi Combat Hostiles Destroyed 19 | . 13 3 3 Guns 14 | . 11 3 . AOE 5 | . 2 . 3 Classes Destroyed 9 | 3 5 . 1 Worker 3 | 2 1 . . Tunneler 2 | 2 . . . Hauler 1 | . 1 . . Recycler 1 | 1 . . . Operator 1 | . 1 . . Watcher 3 | . 3 . . Swarmer 9 | . 6 3 . Grunt 7 | . 7 . . Assembled 3 | . . . 3 Best Kill Streak 6 | 3 6 3 3 Combat Bots Only 6 | . 6 3 3 Max Kills in Single Turn 2 | 2 1 2 1 Gunslinging 1 | . . 1 . Exploded 1 | . 1 . 1 Melee . | . . . . Uniques/NPCs Destroyed . | . . . . Combat | -11 -10 -10 -10 -------- Run | Yrd Mat Min Exi Hostile Shots Fired 107 | . 58 6 43 Missed 25 | . 16 2 7 Hits 82 | . 42 4 36 Projectile 82 | . 42 4 36 Critical Strikes 13 | . . . 13 Damage Taken 1113 | . 484 34 595 Core 268 | . 98 8 162 Absorbed by Shields . | . . . . Core Remaining (%) 100 | 100 . . . Volleys Fired 87 | 8 44 3 32 Largest 2 | 2 2 2 2 Hottest 80 | 80 80 46 46 Shots Fired 164 | 16 82 6 60 Gun 161 | 16 82 6 57 Cannon . | . . . . Launcher 3 | . . . 3 Special . | . . . . Kinetic 121 | . 58 6 57 Thermal . | . . . . Explosive 3 | . . . 3 Electromagnetic 40 | 16 24 . . Robot Hit Streak 13 | 3 10 4 13 Robot Miss Streak 3 | 2 3 1 3 Penetration Max . | . . . . Secondary Targets 4 | . 3 1 . Max Gunslinging Chain 1 | . 1 1 . Shots Hit Robots 109 | 8 53 4 44 Core Hits 56 | 6 28 3 19 Critical Kills . | . . . . Critical Parts Destroyed 1 | . 1 . . Critical Strikes 1 | . 1 . . Destroy 1 | . 1 . . Melee Attacks . | . . . . Impact . | . . . . Slashing . | . . . . Piercing . | . . . . Sneak Attacks . | . . . . Combat Hostiles . | . . . . Follow-up Attacks . | . . . . Damage Inflicted 1872 | 170 743 57 902 Guns 1455 | 106 630 57 662 Cannons . | . . . . Explosions 417 | 64 113 . 240 Melee . | . . . . Ramming . | . . . . Kinetic 1131 | . 412 57 662 Thermal 140 | 64 76 . . Explosive 277 | . 37 . 240 Electromagnetic 324 | 106 218 . . Impact . | . . . . Slashing . | . . . . Piercing . | . . . . Highest Corruption . | . . . . Average Corruption . | . . . . Corruption Purged . | . . . . Corruption Blocked . | . . . . Overload Shots . | . . . . Overflow Damage 7 | 1 . . 6 Projectiles . | . . . . Explosions 7 | 1 . . 6 Melee . | . . . . Knockbacks . | . . . . Impact . | . . . . Kinetic . | . . . . Secondary . | . . . . Self-Inflicted Damage 15 | . 15 . . Shots 1 | . 1 . . Rammed . | . . . . Targets Rammed . | . . . . Kicked . | . . . . Crushed . | . . . . Highest Temperature 84 | 72 84 . . Average Temperature 27 | 32 25 . . Received Heat Transfer 174 | . 174 . . Siege Activations . | . . . . Martial Activations . | . . . . Shielding Activations . | . . . . Robots Disrupted . | . . . . Combat Hostiles . | . . . . Robots Corrupted . | . . . . Combat Hostiles . | . . . . Parts Fried 1 | . 1 . . Impact Corruptions . | . . . . Robots Melted . | . . . . Combat Hostiles . | . . . . Parts Melted 1 | . 1 . . Heat Transferred 250 | 150 100 . . Parts Sabotaged . | . . . . Parts Stolen . | . . . . Parts Stripped . | . . . . Power Chain Reactions 3 | 1 2 . . Alert | -11 -10 -10 -10 ------- Run | Yrd Mat Min Exi Maximum Alert Level . | . . . . Low Security (%) 100 | 100 100 100 . Level 1 . | . . . . Level 2 . | . . . . Level 3 . | . . . . Level 4 . | . . . . Level 5 . | . . . . High Security . | . . . . Max Security . | . . . . Peak Influence 177 | 15 177 70 . Initial 9 | . 9 . . Average 35 | 2 52 7 . Influence Increases 547 | 25 452 70 . Destroy 0b10 Robot/C 320 | . 260 60 . Destroy 0b10 Robot/NC 55 | 25 30 . . Destroy Leader 68 | . 58 10 . Successful Hack 12 | . 12 . . Disable Machine 30 | . 30 . . Destroy Structure 17 | . 17 . . Lose Combat Pursuer 45 | . 45 . . Influence Decreases 547 | 10 467 70 . Entered New Map 6 | . 6 . . Time Decay 531 | 10 451 70 . Lost Part 10 | . 10 . . Squads Dispatched 3 | . 3 . . Investigation 2 | . 2 . . Extermination . | . . . . Reinforcement 1 | . 1 . . Assault . | . . . . Garrison . | . . . . Intercept . | . . . . Searches Triggered . | . . . . Construction Impeded . | . . . . Haulers Reinforced . | . . . . Active Scanning Responses . | . . . . Cargo Convoy Interrupts . | . . . . Stealth | -11 -10 -10 -10 --------- Run | Yrd Mat Min Exi Distress Signals 2 | . 2 . . Communications Jammed . | . . . . Distress Signals . | . . . . Times Spotted 31 | . 20 3 8 Peak Tracking Total 11 | . 3 3 11 Tactical Retreats 3 | . 2 . 1 Traps | -11 -10 -10 -10 ------- Run | Yrd Mat Min Exi Traps Triggered 2 | . 2 . . Indirectly . | . . . . Trap Hack Attempts . | . . . . Triggered . | . . . . Disarmed . | . . . . Reprogrammed . | . . . . Reused 4 | . . . 4 Traps Extracted . | . . . . Installed 4 | . . . 4 Triggered . | . . . . Most Traps Carried 4 | . . 4 4 Machines | -11 -10 -10 -10 ---------- Run | Yrd Mat Min Exi Machines Disabled 7 | . 2 . 5 Max in Single Turn 1 | . 1 . 1 Machines Repaired . | . . . . Machines Dismantled . | . . . . Machines Sabotaged . | . . . . Overloaded Fab Kills . | . . . . Hacking | -11 -10 -10 -10 --------- Run | Yrd Mat Min Exi Machines Accessed 9 | . 7 . 2 Terminals 7 | . 7 . . Fabricators . | . . . . Repair Stations . | . . . . Recycling Units . | . . . . Scanalyzers . | . . . . Garrison Access . | . . . . Total Hacks 19 | . 16 . 3 Successful 14 | . 11 . 3 Failed 5 | . 5 . . Catastrophic . | . . . . Database Lockouts . | . . . . Manual 16 | . 15 . 1 Terminals 16 | . 16 . . Fabricators . | . . . . Repair Stations . | . . . . Recycling Units . | . . . . Scanalyzers . | . . . . Garrison Access . | . . . . Terminal Hacks 4 | . 1 . 3 Record 2 | . . . 2 Locate Traps 1 | . 1 . . Proto ID Catalog 1 | . . . 1 Fabricator Hacks . | . . . . Repair Station Hacks . | . . . . Recycling Unit Hacks . | . . . . Scanalyzer . | . . . . Garrison Access Hacks . | . . . . Unauthorized Hacks 10 | . 10 . . Terminals 10 | . 10 . . Botnet 3 | . 3 . . Skim 7 | . 7 . . Fabricators . | . . . . Repair Stations . | . . . . Recycling Units . | . . . . Scanalyzers . | . . . . Garrison Access . | . . . . Data Cores Recovered 1 | . 1 . . Used . | . . . . Hacking Detections 7 | . 7 . . Full Trace Events 1 | . 1 . . Feedback Events . | . . . . Feedback Blocked . | . . . . Robot Schematics Acquired . | . . . . Robots Built . | . . . . Authchips . | . . . . Time . | . . . . Total Robot Build Rating . | . . . . Part Schematics Acquired . | . . . . Parts Built . | . . . . Authchips . | . . . . Time . | . . . . Total Part Build Rating . | . . . . Part Studies Acquired . | . . . . Parts Repaired . | . . . . Time . | . . . . Parts Recycled . | . . . . Recycled Matter . | . . . . Retrieved Matter . | . . . . Retrieved Components . | . . . . Parts Scanalyzed . | . . . . Part Schematics Acquired . | . . . . Parts Damaged . | . . . . Bothacking | -11 -10 -10 -10 ------------ Run | Yrd Mat Min Exi Used RIF Installer . | . . . . Robots Hacked . | . . . . Non-combat . | . . . . Combat . | . . . . Robot Hacks Applied . | . . . . Relay Couplers Released . | . . . . Fabnet Peak Effective % . | . . . . Robots Rewired . | . . . . Allies Hacked . | . . . . Hacks Repelled . | . . . . Allies | -11 -10 -10 -10 -------- Run | Yrd Mat Min Exi Total Allies . | . . . . Largest Group . | . . . . Highest-Rated Group . | . . . . Highest-Rated Ally . | . . . . Total Orders . | . . . . Ally Attacks . | . . . . Total Damage . | . . . . Kills . | . . . . Allies Corrupted . | . . . . Allies Melted . | . . . . Intel | -11 -10 -10 -10 ------- Run | Yrd Mat Min Exi Active Infowar (turns) 4123 | 40 1645 849 1589 Seismic 4123 | 40 1645 849 1589 Robot Analysis Total . | . . . . Derelict Logs Recovered 1 | . . 1 . Drone Launches . | . . . . Drone Recoveries . | . . . . Exploration | -11 -10 -10 -10 ------------- Run | Yrd Mat Min Exi Turns Passed 4433 | 118 1645 849 1821 Spaces Moved 1901 | 57 543 342 959 Core 24 | 24 . . . Treads 1698 | 33 543 342 780 Legs 179 | . . . 179 Wheels . | . . . . Hover . | . . . . Flight . | . . . . Fastest Speed 45 | 50 160 240 45 Average Speed 200 | 131 234 240 170 Slowest Speed 240 | 200 240 240 240 Overloaded Moves 5 | . . . 5 Propulsion Burnouts . | . . . . Robots Hopped . | . . . . Potential Cave-ins . | . . . . Cave-ins Triggered . | . . . . Exploration Rate (%) 53 | 5 89 55 66 Regions Visited 3 Branch Regions 2 Pre-discovered Areas 1 | . . . 1 Known Exits Taken . | . . . . Unknown Exits Taken 3 | 1 1 1 . Scrap Searched 1 | . . 1 . Spaces Dug . | . . . . Terrain Destroyed 31 | 3 16 . 12 Melee . | . . . . Projectile . | . . . . AOE 31 | 3 16 . 12 Terrain Rammed . | . . . . Walls Destroyed . | . . . . Machines Disabled . | . . . . Actions | -11 -10 -10 -10 --------- Run | Yrd Mat Min Exi Total 2398 | 83 845 371 1099 Wait 280 | . 222 13 45 Move 1898 | 56 542 341 959 Hop . | . . . . Pick Up 59 | 12 21 5 21 Fast Attach 3 | 2 . . 1 Attach 8 | 5 1 . 2 Detach . | . . . . Swap 11 | . 5 2 4 Drop 48 | . 10 7 31 Fire 87 | 8 44 3 32 Melee . | . . . . Ram . | . . . . Kick . | . . . . Crush . | . . . . Escape Stasis . | . . . . Rewire . | . . . . Trap 4 | . . . 4 Miscellaneous . | . . . . Route ------- -11/Scrapyard -10/Materials (discovered 6 exits: [*Mat x3] / [*Min x2] / Sub) -10/Mines (discovered 2 exits: [*Mat] / *Exi) -10/Exiles History --------- Turn | Location | Event 44 | -11/Scrapyard | Discovered new exit (range 12) 119 | -11/Scrapyard | Entered Materials 119 | -10/Materials | Discovered new exit (range 7) 230 | -10/Materials | Discovered new exit (range 15) 308 | -10/Materials | Build established: Mutant 447 | -10/Materials | Discovered new exit (range 16) 744 | -10/Materials | Discovered new exit (range 14) 1000 | -10/Materials | Learned 4 Recycling zone layouts 1027 | -10/Materials | Discovered new exit (range 11) 1558 | -10/Materials | Identified exit to Subcaves 1558 | -10/Materials | Learned location of 1 exit from Materials 1601 | -10/Materials | Learned Storage trap positions 1608 | -10/Materials | Loaded intel: 5 trap records 1624 | -10/Materials | Loaded intel: 1 repair station location 1649 | -10/Materials | Learned 4 Subcaves zone layouts 1686 | -10/Materials | Learned 2 Storage zone layouts 1764 | -10/Materials | Entered Mines 1967 | -10/Mines | Received a Rocket Launcher from a helpful Derelict 2222 | -10/Mines | Found a hidden stash of uninstalled traps 2252 | -10/Mines | Learned Materials security intel 2298 | -10/Mines | Discovered new exit (range 8) 2381 | -10/Mines | Deemed a non-threat by the Exiles lab entrance 2381 | -10/Mines | Discovered new exit (range 5) 2613 | -10/Mines | Entered Exiles 2678 | -10/Exiles | Met 8R-AWN 2712 | -10/Exiles | Met EX-HEX 2786 | -10/Exiles | Met EX-BIN 2820 | -10/Exiles | Aligned with FarCom system 2822 | -10/Exiles | Given EX-Vault access code 2877 | -10/Exiles | Opened EX-Vault 2942 | -10/Exiles | Warned to stay clear of 0b10 Research branches 3067 | -10/Exiles | Met EX-DEC 3110 | -10/Exiles | Learned location of Zion (-7) 3539 | -10/Exiles | Found Potential Leg 3541 | -10/Exiles | Found Potential Leg 3552 | -10/Exiles | Found Lightpack 2.0 3980 | -10/Exiles | Found PSU Rigger 4260 | -10/Exiles | Attacked by the Exiles 4353 | -10/Exiles | Core integrity fell below 50% 4399 | -10/Exiles | Core integrity fell below 20% 4434 | -10/Exiles | Destroyed by 8R-AWN with 8R-AWN's Boregun Last Messages --------------- 04378_ Penetrated by HV Slug. 04378_ HV Slug penetrates Earth. 04380_ Penetrated by HV Slug. 04380_ HV Slug penetrates Earth. 04380_ Destroyed Prototype Protection. 04382_ HV Slug penetrates Wall. 04384_ Penetrated by HV Slug. 04384_ HV Slug penetrates Earth. 04386_ HV Slug penetrates Machine. 04388_ Penetrated by HV Slug. 04394_ HV Slug penetrates Machine. 04394_ HV Slug penetrates Wall. 04396_ Penetrated by HV Slug. 04410_ HV Slug penetrates Wall. 04414_ HV Slug penetrates Machine. 04414_ HV Slug penetrates Wall. 04416_ Penetrated by HV Slug. 04420_ Critical hit (Destroy). 04420_ Hvy. Assault Rifle destroyed. 04422_ Penetrated by HV Slug. Map ----- +----------------------------------------------------+ | ?????????????????????????????????????????????????? | | ?????????????????????????????????????????????????? | | ?????????????????????????????????????????????????? | | ?????????????????????????????????????????????????? | | ?????????????????????????????????????????????????? | | ?????????????????????????????????????????????????? | | ?????????????????????????????????????????????????? | | ?????????????????????????????????????????????????? | | ?????????????????????????????????????????????????? | | ?????????????????????????????????????????????????? | | ?????????????????????????????????????????????????? | | ?????????????????????????????????????????????????? | | ?????????????????????????????#######?????????????? | | ??????????????? ######???????#!!! "#?????????????? | | ?????????????? #""#??????# "#?????????????? | | ?????????????? ??????# "#?????????????? | | ?????????????" #????## ""#????????????## | | ?????????????? #####" ""#???????????? | | ??????????????? ##" ""?????????????" | | ???????????????? # " #?????????????"" | | ??????????????????# #????????????#"" | | ?????????????????????# ##???????????#"" | | ??????????????????????## "#???????????? | | ???????????????########" ### #????????" | | ???????????????# """"" g[! ! #????????# | | ???????????????# !=! @ ###"" # ###???### | | ???????????????#!=!=! !"#?##" " #####X# | | ???????????????#!/= ! ;#??#" | | ???????????????#!! "" ";###??#"# | | ???????????????#;####;###?????###" % | | ???????????????????# #???????????### % | | ??????????????????# #??????????????##" %* | | ?????????????????# #?????????????????# | | ????????????????# #??????????????????? | | ???????????????? #????????????????????? | | ??????????????? ????????????????????????#""" | | ?????????????? ????????????????????????##" | | ???????????????????????????????????????#"" | | ???????????????????????????????????????#""" | | ???????????????????????????????????????""" | | ???????????????????????????????????????""" | | ???????????????????????????????????????"" | | ???????????????????????????????????????""" | | ???????????????????????????????????????"" | | ???????????????????????????????????????#"" | | ???????????????????????????????????????#"""" | | ????????????????????????????????????????# | | ?????????????????????????????????????????" | | ?????????????????????????????????????????"""" | | ?????????????????????????????????????????"" | +----------------------------------------------------+ Best States ------------- Heat Dissipation 25 Energy Generation 10 Energy Capacity 250 Matter Stores 450 Matter Capacity 450 Sight Range 16 Terrain Scan Density 10 Evasion (%) 57 Recoil Reduction 2 Item Schematics ----------------- None Robot Schematics ------------------ None Fabricated ------------ Nothing Repaired ---------- Nothing Studied --------- None Alien Tech Used ----------------- None Achievements -------------- Sprinter Challenges ------------ None Game ------ Seed BottomlessNovaPurifier Manual? 0 Play Time 00:17:18 Cumulative 203.8 hours Start 2025.12.14 @ 22:25:18 End 2025.12.14 @ 22:41:35 Sessions 1 Manual Loads 0 Difficulty Rogue Special Mode None Game No. 287 Rogue 287 Adventurer 0 Explorer 0 Win Type - Total 3 Types 2/0/0/1/0/0/0/0/0/0 Lore% 73 Gallery% 73 Achievement% 45 Wizard Run 0 Options --------- Layout 0 ASCII 0 Keyboard 0 Movement Mouse Keybinds 0 Fullscreen 1 Font 16/SmallcapsGlow Map View 75x55 Zoom Use 0% Tactical HUD 1 Map Filters NONE Filters NONE Steam 1 RUN: 8dca0b82-939e-4a39-8161-1d5219b6e4fd